bitfinex/quotes_BTCUSD_20220204
["timestamp","ask_amount","ask_price","bid_price","bid_amount"]
[1643992409460,1.65,40225.0,40212.0,0.94503517]
[1643992409673,0.07027464,40219.0,40213.0,0.00032461]
[1643992409862,0.21025902,40218.0,40211.0,0.00032461]
[1643992410167,0.21025902,40218.0,40201.0,0.7475]
[1643992410168,1.65,40216.0,40201.0,0.7475]
[1643992410365,0.09494528,40214.0,40200.0,1.0]
[1643992410567,0.09765833,40201.0,40200.0,1.0]
[1643992410768,0.09765833,40201.0,40185.0,0.20286583]
[1643992410769,0.37097781,40199.0,40185.0,0.20286583]
[1643992410968,0.95,40200.0,40183.0,0.20417063]
[1643992410969,0.38042422,40188.0,40183.0,0.20417063]
[1643992411163,0.0957,40187.0,40184.0,0.3389]
[1643992411366,0.33042422,40188.0,40187.0,0.03570738]
[1643992411561,0.15511227,40194.0,40185.0,0.689253]
[1643992411562,0.0457,40186.0,40185.0,0.689253]
[1643992411764,0.0457,40186.0,40185.0,0.51669233]
[1643992411961,0.0457,40186.0,40185.0,0.46669233]
[1643992412161,0.0457,40186.0,40185.0,0.51669233]
[1643992412861,0.0457,40186.0,40185.0,0.389253]
[1643992413113,0.0457,40186.0,40185.0,0.339253]
[1643992413508,0.0457,40186.0,40184.0,0.339253]
[1643992413914,0.0457,40186.0,40185.0,0.389253]
[1643992414110,0.0457,40186.0,40185.0,0.86865813]
[1643992414309,0.0457,40186.0,40185.0,0.339253]
[1643992414908,0.28501685,40189.0,40180.0,0.05]
[1643992415109,0.0457,40188.0,40181.0,0.35850128]
[1643992415310,0.08283904,40187.0,40184.0,0.15209514]
[1643992415512,0.14506804,40187.0,40181.0,0.01924828]
[1643992415811,0.28811685,40182.0,40181.0,0.01924828]
[1643992416011,0.0457,40182.0,40181.0,0.01924828]
[1643992416413,0.0457,40182.0,40181.0,0.15417096]
[1643992416859,0.0457,40182.0,40181.0,0.01924828]
[1643992417262,0.0457,40182.0,40179.0,0.05]
[1643992417862,0.12547274,40199.0,40181.0,1.65]
[1643992418062,0.42905599,40209.0,40181.0,1.65]
[1643992418063,0.0457,40197.0,40192.0,0.05]
[1643992418262,0.4736,40213.0,40196.0,0.05]
[1643992418263,0.00291399,40198.0,40196.0,0.05]
[1643992418563,0.38422676,40203.0,40186.0,0.1524455]
[1643992418762,0.0457,40197.0,40186.0,0.1524455]
[1643992418966,0.29760939,40205.0,40195.0,0.45]
[1643992418967,0.0457,40196.0,40195.0,0.45]
[1643992419163,0.0457,40204.0,40196.0,0.339253]
[1643992419366,0.0457,40204.0,40201.0,0.05]
[1643992419664,0.37259798,40203.0,40187.0,1.5484]
[1643992419863,0.43984087,40196.0,40183.0,0.42410531]
[1643992420066,0.0998011,40196.0,40183.0,0.41910531]
[1643992420263,0.06222,40200.0,40192.0,0.05]
[1643992420707,0.06222,40200.0,40192.0,0.15864883]
[1643992420907,0.45,40197.0,40177.0,0.68758452]
[1643992421107,0.45,40197.0,40190.0,0.02165673]
[1643992421108,0.08658774,40196.0,40190.0,0.02165673]
[1643992421309,0.08658774,40196.0,40190.0,0.02156573]
[1643992421310,0.05,40196.0,40190.0,0.02156573]
[1643992421512,0.05,40196.0,40177.0,0.64713622]
[1643992421707,0.05,40200.0,40184.0,0.062118]
[1643992421907,0.02156573,40191.0,40184.0,0.062118]
[1643992422107,0.02156573,40191.0,40190.0,0.339253]
[1643992422306,0.02156573,40191.0,40190.0,0.339071]
[1643992422507,0.27566364,40204.0,40190.0,0.339071]
[1643992422508,0.05,40207.0,40191.0,0.649909]
[1643992422710,0.05,40207.0,40192.0,0.401451]
[1643992422905,0.05,40203.0,40194.0,0.339168]
[1643992423105,0.05,40207.0,40194.0,0.339168]
[1643992423308,0.05,40208.0,40205.0,0.350175]
[1643992423507,0.052,40211.0,40205.0,0.350175]
[1643992423508,0.002,40211.0,40205.0,0.350175]
[1643992423708,0.002,40211.0,40206.0,0.33916617]
[1643992423909,0.001,40215.0,40206.0,0.57352325]
[1643992424269,0.112182,40220.0,40208.0,1.989168]
[1643992424270,0.05,40220.0,40208.0,1.989168]
[1643992424460,0.05,40220.0,40209.0,0.23435708]
[1643992424659,0.33522061,40223.0,40210.0,0.339093]
[1643992424866,0.33522061,40223.0,40210.0,0.00032493]
[1643992425059,0.28236696,40216.0,40210.0,0.00032493]
[1643992425262,0.05,40215.0,40203.0,0.00032493]
[1643992425459,0.23435708,40226.0,40203.0,0.0457]
[1643992425460,0.05,40220.0,40203.0,0.0457]
[1643992425659,0.10107062,40212.0,40204.0,0.40020542]
[1643992425861,0.43316146,40218.0,40205.0,1.15]
[1643992426060,0.15210397,40216.0,40206.0,0.339093]
[1643992426262,0.15210397,40216.0,40206.0,0.00025055]
[1643992426465,0.15210397,40216.0,40206.0,0.339093]
[1643992426661,0.05,40211.0,40204.0,0.339093]
[1643992426865,0.10436971,40207.0,40204.0,0.33934355]
[1643992427160,0.05,40207.0,40206.0,0.01999672]
[1643992427361,0.47,40207.0,40206.0,0.35908972]
[1643992427564,1.58357632,40207.0,40206.0,0.01999672]
[1643992428216,1.67012497,40207.0,40206.0,0.01999672]
[1643992428617,1.67012497,40207.0,40197.0,0.00025055]
[1643992428817,0.02,40201.0,40194.0,0.00015955]
[1643992429017,0.062212,40204.0,40195.0,0.339093]
[1643992429018,0.24318613,40200.0,40195.0,0.339093]
[1643992429420,0.24318613,40200.0,40195.0,0.33908707]
[1643992429620,0.07601726,40199.0,40195.0,0.33908707]
[1643992429818,0.26318613,40200.0,40195.0,0.33908707]
[1643992430017,0.31831707,40197.0,40193.0,0.02015871]
[1643992430217,0.31831707,40197.0,40193.0,0.02009016]
[1643992430617,0.02,40196.0,40193.0,0.02009016]
[1643992431217,0.02,40196.0,40194.0,0.339177]
[1643992431617,0.02,40196.0,40193.0,0.02009016]
[1643992432255,0.37027285,40194.0,40193.0,0.02009016]
[1643992432655,0.44057475,40194.0,40193.0,0.02009016]
[1643992432956,0.02,40196.0,40193.0,0.02009016]
[1643992433356,0.02,40196.0,40188.0,0.03]
[1643992433657,0.02,40196.0,40192.0,0.03]
[1643992433856,0.0457,40197.0,40192.0,0.03]
[1643992434059,0.49150447,40201.0,40192.0,0.03]
[1643992434258,0.02,40199.0,40191.0,0.03]
[1643992435156,0.02,40199.0,40194.0,0.03]
[1643992435358,0.02,40199.0,40192.0,6.855e-05]
[1643992435608,0.02,40199.0,40191.0,0.43833673]
[1643992436111,0.623116,40231.0,40197.0,0.03]
[1643992436112,0.02,40207.0,40197.0,0.03]
[1643992436309,0.02,40207.0,40191.0,0.40833673]
[1643992436310,0.07,40209.0,40200.0,0.46411852]
[1643992436510,0.02,40209.0,40197.0,0.03]
[1643992436707,0.02,40209.0,40199.0,0.339177]
[1643992436909,0.1226165,40209.0,40199.0,0.33885033]
[1643992437110,0.02,40200.0,40199.0,0.33891888]
[1643992437313,0.02,40200.0,40199.0,0.339177]
[1643992437508,0.53901409,40206.0,40199.0,0.339165]
[1643992437709,0.53901409,40206.0,40196.0,0.03]
[1643992437710,0.55901409,40206.0,40196.0,0.03]
[1643992437907,0.31088203,40206.0,40196.0,0.03]
[1643992438309,0.31088203,40206.0,40195.0,6.855e-05]
[1643992438510,0.45127578,40204.0,40194.0,0.062195]
[1643992438710,0.45127578,40204.0,40193.0,0.03]
[1643992438910,0.02,40202.0,40192.0,6.855e-05]
[1643992439111,0.02,40202.0,40191.0,6.855e-05]
[1643992439359,0.02,40202.0,40191.0,0.339165]
[1643992439562,0.32440842,40214.0,40191.0,0.339165]
[1643992439563,0.04087964,40208.0,40199.0,0.03]
[1643992439758,0.04087964,40208.0,40203.0,0.03]
[1643992439963,0.02,40204.0,40195.0,6.855e-05]
[1643992440161,0.04087964,40208.0,40195.0,0.458538]
[1643992440359,0.04087964,40208.0,40202.0,0.42961734]
[1643992440360,0.05087964,40208.0,40202.0,0.42961734]
[1643992440559,0.05087964,40208.0,40203.0,0.339165]
[1643992440760,0.08867371,40205.0,40203.0,0.339165]
[1643992440959,0.08867371,40205.0,40204.0,0.339131]
[1643992441159,0.08867371,40205.0,40196.0,6.855e-05]
[1643992441361,0.03,40204.0,40195.0,0.02190826]
[1643992441562,0.03,40196.0,40195.0,0.02190826]
[1643992441760,0.42276744,40196.0,40195.0,0.02197681]
[1643992441962,0.42276744,40196.0,40195.0,0.02190826]
[1643992442260,0.03,40196.0,40195.0,0.02190826]
[1643992442464,0.1398338,40200.0,40195.0,0.01471315]
[1643992442660,0.03,40197.0,40195.0,0.01471315]
[1643992443512,0.03,40197.0,40191.0,0.02006855]
[1643992443710,0.03,40197.0,40191.0,0.02]
[1643992443711,0.09056254,40196.0,40191.0,0.02]
[1643992443911,0.03,40195.0,40191.0,0.02]
[1643992444313,0.03,40192.0,40191.0,0.02]
[1643992444513,0.03,40192.0,40190.0,0.339131]
[1643992444913,0.08613301,40198.0,40192.0,0.339131]
[1643992445115,0.08613301,40198.0,40193.0,0.339131]
[1643992445312,0.08613301,40198.0,40191.0,0.16007769]
[1643992445517,0.06221031,40203.0,40192.0,0.05]
[1643992445913,0.06221031,40203.0,40190.0,0.42488254]
[1643992445914,0.69804808,40203.0,40190.0,0.42488254]
[1643992446112,0.69804808,40203.0,40189.0,0.05]
[1643992446312,0.69804808,40203.0,40189.0,0.05006855]
[1643992446513,0.09178223,40201.0,40189.0,0.05]
[1643992446765,0.09178223,40201.0,40193.0,0.14553435]
[1643992446955,0.09178223,40201.0,40189.0,0.05]
[1643992447155,0.09178223,40201.0,40189.0,0.28407344]
[1643992447355,0.24354356,40207.0,40189.0,0.28407344]
[1643992447559,0.1,40215.0,40198.0,0.05]
[1643992447560,0.02068849,40206.0,40198.0,0.05]
[1643992447759,0.02068849,40206.0,40203.0,0.05]
[1643992447961,0.24186717,40223.0,40205.0,1.6]
[1643992448159,0.2697,40221.0,40215.0,0.67125516]
[1643992448361,0.0279,40221.0,40218.0,0.05]
[1643992448558,0.00235161,40221.0,40220.0,1.65]
[1643992448758,0.0062599,40241.0,40224.0,1.65]
[1643992448759,0.02402,40233.0,40224.0,1.65]
[1643992448958,0.001,40241.0,40233.0,0.12974392]
[1643992449161,0.001,40241.0,40235.0,0.05]
[1643992449359,0.001,40241.0,40233.0,0.12974392]
[1643992449360,0.001,40241.0,40240.0,0.339131]
[1643992449660,0.001,40245.0,40241.0,0.339131]
[1643992449858,0.001,40244.0,40243.0,0.387903]
[1643992450057,0.002,40244.0,40243.0,0.338903]
[1643992450262,0.00532207,40246.0,40243.0,0.451024]
[1643992450515,0.00532207,40246.0,40244.0,0.337903]
[1643992450713,0.00532207,40246.0,40245.0,0.525257]
[1643992450920,0.00532207,40246.0,40245.0,0.338903]
[1643992451114,0.05,40254.0,40250.0,4.10249638]
[1643992451314,0.001,40256.0,40251.0,0.99692778]
[1643992452013,0.001,40256.0,40253.0,0.05]
[1643992452214,0.05,40263.0,40254.0,0.338878]
[1643992452415,0.002,40268.0,40257.0,0.05]
[1643992452615,0.002,40268.0,40266.0,0.3967811]
[1643992452821,0.002,40268.0,40266.0,0.7856591]
[1643992453014,0.002,40268.0,40266.0,0.338878]
[1643992453314,0.002,40268.0,40259.0,0.338878]
[1643992453315,0.12055504,40268.0,40259.0,0.338878]
[1643992453514,0.002,40268.0,40259.0,0.40096]
[1643992453713,0.002,40268.0,40259.0,0.338878]
[1643992454112,0.002,40268.0,40267.0,0.41832844]
[1643992454374,0.002,40268.0,40261.0,0.338878]
[1643992454375,0.27065733,40267.0,40261.0,0.338878]
[1643992454578,0.0837786,40263.0,40256.0,0.7998]
[1643992454774,0.37578348,40260.0,40257.0,0.338878]
[1643992454975,0.062112,40263.0,40248.0,0.22694442]
[1643992455176,0.062112,40263.0,40250.0,0.42149009]
[1643992455177,0.40621194,40262.0,40250.0,0.42149009]
[1643992455382,0.13943456,40260.0,40250.0,0.42149009]
[1643992455675,0.02087096,40268.0,40251.0,0.56582242]
[1643992455878,0.062111,40266.0,40251.0,0.56582242]
[1643992456074,0.02087096,40268.0,40251.0,0.56582242]
[1643992456274,7.096e-05,40268.0,40259.0,0.05]
[1643992456478,7.096e-05,40268.0,40265.0,0.05]
[1643992456674,7.096e-05,40268.0,40267.0,0.01896804]
[1643992456874,7.096e-05,40268.0,40267.0,0.35784604]
[1643992457475,0.00077096,40269.0,40267.0,0.49716523]
[1643992457674,0.00077096,40269.0,40267.0,0.9666604]
[1643992457873,0.00077096,40269.0,40267.0,1.0287354]
[1643992458316,0.001,40291.0,40270.0,1.65]
[1643992458519,0.001,40291.0,40286.0,0.05]
[1643992458813,0.001,40297.0,40292.0,0.062042]
[1643992459015,0.0457,40322.0,40296.0,1.538878]
[1643992459016,0.03317336,40322.0,40296.0,1.538878]
[1643992459212,0.19497,40309.0,40305.0,0.45661596]
[1643992459413,0.25169,40308.0,40294.0,0.56582242]
[1643992459615,0.28891558,40302.0,40294.0,0.338878]
[1643992459815,0.39666,40301.0,40280.0,0.99074442]
[1643992460014,0.39666,40301.0,40281.0,0.0457]
[1643992460212,0.39166,40301.0,40280.0,1.04074442]
[1643992460414,0.3793575,40295.0,40284.0,0.1241]
[1643992460617,0.3793575,40295.0,40280.0,0.7638]
[1643992460618,0.1393657,40290.0,40280.0,0.7638]
[1643992460815,0.1393657,40290.0,40270.0,0.22694442]
[1643992460816,0.29328775,40281.0,40270.0,0.22694442]
[1643992461026,0.29328775,40281.0,40267.0,0.01896804]
[1643992461213,0.42863426,40289.0,40269.0,0.22694442]
[1643992461415,0.44809189,40282.0,40267.0,0.00079641]
[1643992461617,0.15624668,40279.0,40267.0,0.00079641]
[1643992461860,1.65,40277.0,40267.0,0.00079641]
[1643992462061,1.65,40277.0,40247.0,0.8395]
[1643992462062,2.49444442,40276.0,40247.0,0.8395]
[1643992462259,0.84444442,40276.0,40251.0,0.05]
[1643992462458,0.11937371,40276.0,40256.0,0.38507677]
[1643992462658,0.062107,40275.0,40256.0,0.38507677]
[1643992462858,0.0457,40274.0,40256.0,0.33507677]
[1643992463056,0.0457,40274.0,40253.0,0.05]
[1643992463263,0.0457,40274.0,40256.0,0.02179411]
[1643992463264,0.05924042,40274.0,40256.0,0.02179411]
[1643992463661,0.01354042,40274.0,40267.0,0.11770544]
[1643992463862,0.01354042,40274.0,40258.0,0.05]
[1643992463863,0.0457,40273.0,40258.0,0.05]
[1643992464061,0.46722695,40271.0,40262.0,0.39748226]
[1643992464260,0.0457,40270.0,40262.0,0.39748226]
[1643992464662,0.0457,40270.0,40263.0,0.338878]
[1643992464861,0.05,40279.0,40263.0,0.338878]
[1643992464862,0.05,40279.0,40265.0,0.05]
[1643992465062,0.0457,40278.0,40266.0,0.58658576]
[1643992465512,0.0457,40278.0,40266.0,0.24770776]
[1643992465913,0.0457,40278.0,40266.0,0.24455006]
[1643992466111,0.37014919,40278.0,40266.0,0.24455006]
[1643992466310,0.4657,40278.0,40266.0,0.24455006]
[1643992466509,0.4657,40278.0,40268.0,0.36486745]
[1643992466709,0.4657,40278.0,40273.0,0.1327199]
[1643992466910,0.01909503,40282.0,40273.0,0.1327199]
[1643992466911,0.01909503,40282.0,40276.0,0.338878]
[1643992467112,0.01909503,40282.0,40278.0,0.338878]
[1643992467609,0.38300507,40284.0,40275.0,0.35866868]
[1643992467909,0.82131957,40284.0,40275.0,0.35866868]
[1643992468515,0.82131957,40284.0,40274.0,0.06208]
[1643992468516,0.34150835,40277.0,40274.0,0.06208]
[1643992468713,0.34150835,40277.0,40269.0,0.124161]
[1643992468714,0.098851,40276.0,40269.0,0.124161]
[1643992468913,0.0457,40276.0,40266.0,0.15397886]
[1643992469365,0.0457,40276.0,40270.0,0.42524459]
[1643992469565,0.0457,40276.0,40271.0,0.338878]
[1643992469966,0.29799837,40274.0,40264.0,0.22203612]
[1643992470169,0.34486471,40277.0,40249.0,0.05]
[1643992470170,0.2801222,40267.0,40249.0,0.05]
[1643992470369,0.384578,40266.0,40253.0,0.94472746]
[1643992470567,0.1898673,40272.0,40253.0,0.94472746]
[1643992470568,0.0457,40265.0,40253.0,0.94472746]
[1643992470866,0.0457,40264.0,40263.0,0.3465555]
[1643992471069,0.0457,40264.0,40263.0,0.12564091]
[1643992471568,0.6218,40277.0,40264.0,0.338878]
[1643992471569,0.01906433,40276.0,40264.0,0.338878]
[1643992471767,0.01906433,40276.0,40256.0,0.22203612]
[1643992472065,0.0457,40275.0,40256.0,0.22203612]
[1643992472265,0.37597368,40270.0,40261.0,0.37580922]
[1643992472769,0.37517368,40270.0,40262.0,0.22087409]
[1643992473028,0.05,40284.0,40267.0,0.05]
[1643992473233,0.42,40288.0,40275.0,0.01906433]
[1643992473425,0.25169,40294.0,40281.0,0.05]
[1643992473426,0.05,40293.0,40281.0,0.05]
[1643992473629,0.002,40298.0,40277.0,0.05]
[1643992473630,0.25169,40292.0,40277.0,0.05]
[1643992473824,0.25169,40292.0,40288.0,0.1140205]
[1643992474025,0.25169,40292.0,40284.0,0.41267328]
[1643992474423,0.25169,40292.0,40285.0,0.338878]
[1643992474629,0.052,40298.0,40291.0,0.05]
[1643992474932,0.18817734,40310.0,40303.0,0.12942076]
[1643992475125,0.051,40310.0,40306.0,0.35948129]
[1643992475326,0.001,40310.0,40306.0,0.338878]
[1643992475525,0.001,40308.0,40303.0,0.12942076]
[1643992475727,0.001,40308.0,40295.0,0.174063]
[1643992475932,0.09422023,40315.0,40295.0,0.174063]
[1643992475933,0.03214587,40323.0,40306.0,0.05]
[1643992476133,0.22487,40322.0,40313.0,0.05]
[1643992476331,0.22287086,40322.0,40313.0,0.05]
[1643992476772,0.22287086,40322.0,40308.0,0.27203612]
[1643992476971,0.21287086,40322.0,40321.0,0.41192859]
[1643992477169,0.21287086,40322.0,40321.0,0.75080659]
[1643992477370,0.13539515,40322.0,40321.0,0.75080659]
[1643992477570,0.002,40325.0,40323.0,0.338878]
[1643992477771,0.002,40325.0,40323.0,0.388878]
[1643992477974,0.15899994,40324.0,40323.0,0.338878]
[1643992478170,0.15899994,40324.0,40312.0,0.0457]
[1643992478369,0.15899994,40324.0,40318.0,0.48]
[1643992478773,0.002,40325.0,40319.0,0.338878]
[1643992478971,0.002,40325.0,40322.0,0.338878]
[1643992479170,0.002,40325.0,40318.0,0.48]
[1643992479370,0.002,40325.0,40319.0,0.338878]
[1643992479785,0.14544738,40324.0,40319.0,0.338878]
[1643992479971,0.3348929,40325.0,40319.0,0.338878]
[1643992480171,0.39293987,40320.0,40319.0,0.338878]
[1643992480370,1.14111481,40320.0,40304.0,0.05]
[1643992480620,1.14111481,40320.0,40305.0,0.22837057]
[1643992480621,0.39293987,40320.0,40305.0,0.22837057]
[1643992480819,0.3348929,40325.0,40308.0,0.22350152]
[1643992481022,0.3348929,40325.0,40311.0,0.05]
[1643992481219,0.3348929,40325.0,40305.0,0.124019]
[1643992481423,0.07806996,40324.0,40321.0,0.00074627]
[1643992481919,0.84584843,40323.0,40321.0,0.00074627]
[1643992482421,0.27187254,40318.0,40304.0,0.30414832]
[1643992482621,0.10292576,40313.0,40301.0,0.23946832]
[1643992482822,0.05,40313.0,40302.0,0.338878]
[1643992483021,0.14544113,40306.0,40302.0,0.338878]
[1643992483225,0.05,40303.0,40302.0,0.338878]
[1643992483524,0.0957,40303.0,40300.0,5.0]
[1643992484125,0.0957,40303.0,40301.0,0.338878]
[1643992485672,0.0957,40303.0,40300.0,5.0]
[1643992486071,0.12430343,40302.0,40300.0,5.0]
[1643992486270,0.0457,40302.0,40301.0,0.338526]
[1643992486472,0.0457,40302.0,40300.0,5.0]
[1643992486674,0.0457,40302.0,40301.0,0.338526]
[1643992486973,0.0407,40302.0,40301.0,0.338526]
[1643992487171,0.0407,40302.0,40301.0,0.46595986]
[1643992487373,0.0407,40302.0,40301.0,0.70361179]
[1643992487572,0.00525059,40314.0,40302.0,1.65]
[1643992487773,0.01989678,40314.0,40303.0,0.462574]
[1643992488013,0.01989678,40314.0,40310.0,0.0858052]
[1643992488214,0.002,40325.0,40310.0,0.0858052]
[1643992488215,0.002,40325.0,40312.0,1.50027781]
[1643992488414,0.002,40325.0,40313.0,0.59594911]
[1643992488613,0.002,40325.0,40313.0,0.61584589]
[1643992488812,0.002,40325.0,40313.0,0.35842278]
[1643992489013,0.05,40315.0,40313.0,0.35842278]
[1643992489221,0.05,40315.0,40311.0,0.124016]
[1643992489222,0.002,40325.0,40311.0,0.04008198]
[1643992489414,0.71801493,40320.0,40311.0,0.04008198]
[1643992489712,0.002,40325.0,40309.0,0.338454]
[1643992489713,0.01989678,40314.0,40309.0,0.338454]
[1643992490114,0.10373582,40314.0,40309.0,0.338454]
[1643992490316,0.10373582,40314.0,40301.0,0.0747441]
[1643992490317,0.4,40310.0,40300.0,4.995]
[1643992490515,0.05,40301.0,40300.0,4.995]
[1643992490816,0.05,40301.0,40300.0,5.333454]
[1643992491014,0.05,40301.0,40300.0,5.4484913]
[1643992491215,0.0457,40309.0,40300.0,5.4484913]
[1643992491413,0.0457,40309.0,40301.0,0.338454]
[1643992491614,0.05,40302.0,40301.0,0.338454]
[1643992491873,0.0457,40303.0,40301.0,0.338454]
[1643992492071,0.0457,40308.0,40303.0,0.338454]
[1643992492273,0.0457,40308.0,40301.0,0.338454]
[1643992492673,0.1610988,40307.0,40301.0,0.338454]
[1643992493473,0.1610988,40307.0,40300.0,4.995]
[1643992493671,0.1610988,40307.0,40300.0,4.945]
[1643992493873,0.0457,40308.0,40301.0,0.338454]
[1643992494478,0.0457,40308.0,40302.0,0.05]
[1643992494775,0.0457,40308.0,40300.0,4.945]
[1643992494776,0.05,40312.0,40300.0,3.995]
[1643992495074,0.12326052,40312.0,40300.0,3.995]
[1643992495273,0.06943236,40318.0,40300.0,3.995]
[1643992495274,0.05,40315.0,40303.0,0.37848571]
[1643992495513,0.05,40315.0,40304.0,0.338454]
[1643992496313,0.05,40315.0,40311.0,0.14153023]
[1643992496716,0.43815574,40313.0,40308.0,0.124019]
[1643992497314,0.43815574,40313.0,40303.0,0.37348571]
[1643992497519,0.24062883,40323.0,40303.0,0.37348571]
[1643992497520,0.05,40317.0,40305.0,0.124027]
[1643992497723,4.69487251,40337.0,40306.0,0.12546659]
[1643992497724,0.11697784,40311.0,40306.0,0.12546659]
[1643992497915,0.11697784,40311.0,40305.0,0.124027]
[1643992497916,0.05,40313.0,40305.0,0.124027]
[1643992498115,0.05,40313.0,40306.0,0.338454]
[1643992498316,0.02114638,40322.0,40306.0,0.338454]
[1643992498515,0.02114638,40322.0,40305.0,0.124027]
[1643992498516,0.05,40309.0,40305.0,0.124027]
[1643992498716,0.22791964,40316.0,40306.0,0.338454]
[1643992498915,0.27688601,40317.0,40300.0,4.77971634]
[1643992498916,0.05,40313.0,40303.0,0.38495016]
[1643992499270,0.05,40320.0,40309.0,0.338454]
[1643992499271,0.05,40316.0,40309.0,0.338454]
[1643992499463,0.05,40316.0,40310.0,0.338454]
[1643992499666,0.05,40316.0,40308.0,0.14257701]
[1643992499667,0.05,40316.0,40311.0,0.338454]
[1643992499864,0.05,40316.0,40312.0,0.338454]
[1643992500064,0.05,40316.0,40313.0,0.338454]
[1643992500264,0.05,40316.0,40300.0,3.62719686]
[1643992500464,0.05,40320.0,40300.0,3.62719686]
[1643992500465,0.05,40313.0,40300.0,3.62719686]
[1643992500663,0.05,40313.0,40301.0,0.338454]
[1643992500864,0.05,40316.0,40304.0,0.124022]
[1643992501082,0.05,40320.0,40306.0,1.65]
[1643992501264,0.05,40320.0,40319.0,0.15794975]
[1643992501467,0.002,40325.0,40320.0,0.338454]
[1643992501769,0.151,40351.0,40333.0,1.3]
[1643992501770,0.05,40348.0,40333.0,1.3]
[1643992501966,0.002,40345.0,40334.0,0.338454]
[1643992502167,0.05,40342.0,40334.0,0.338454]
[1643992502364,0.05,40340.0,40334.0,0.338454]
[1643992502664,0.05,40340.0,40336.0,0.338454]
[1643992503711,0.05,40338.0,40332.0,0.123938]
[1643992504107,0.003,40343.0,40332.0,0.123938]
[1643992504310,0.0036448,40343.0,40338.0,0.061971]
[1643992504518,0.0036448,40343.0,40339.0,0.338454]
[1643992504909,0.002,40345.0,40344.0,0.0132896]
[1643992505110,0.0032896,40345.0,40344.0,0.3517436]
[1643992505310,0.0032896,40345.0,40344.0,0.0132896]
[1643992505512,0.15255545,40345.0,40344.0,0.0132896]
[1643992505710,0.1231854,40336.0,40324.0,0.21293533]
[1643992505910,0.05,40338.0,40325.0,0.338454]
[1643992506110,0.01919767,40331.0,40325.0,0.338454]
[1643992506310,0.01919767,40331.0,40326.0,0.061974]
[1643992506512,0.05,40340.0,40327.0,1.988454]
[1643992506513,0.0012896,40339.0,40327.0,1.988454]
[1643992506779,0.0012896,40339.0,40330.0,0.01919767]
[1643992506780,0.14651397,40336.0,40330.0,0.01919767]
[1643992506973,0.0012896,40339.0,40331.0,0.338454]
[1643992507381,0.05,40335.0,40331.0,0.2645224]
[1643992507581,0.0012896,40339.0,40330.0,0.01919767]
[1643992507582,0.05,40332.0,40330.0,0.01919767]
[1643992507778,0.08227713,40331.0,40330.0,0.01919767]
[1643992507978,0.05,40332.0,40330.0,0.01919767]
[1643992508876,0.18701067,40333.0,40330.0,0.01919767]
[1643992509077,0.04744995,40333.0,40330.0,0.01919767]
[1643992509477,0.04873955,40339.0,40330.0,0.01919767]
[1643992509681,0.0012896,40339.0,40331.0,0.338368]
[1643992509882,0.0012896,40339.0,40333.0,0.338368]
[1643992510080,0.17908452,40336.0,40335.0,0.338368]
[1643992510379,0.0012896,40339.0,40335.0,0.48579]
[1643992510616,0.0012896,40339.0,40338.0,0.75255005]
[1643992510817,0.001,40358.0,40340.0,1.483114]
[1643992511017,0.05,40361.0,40354.0,0.05]
[1643992511221,0.003,40366.0,40349.0,0.2]
[1643992511418,0.003,40366.0,40358.0,0.38519066]
[1643992511419,0.502,40363.0,40358.0,0.38519066]
[1643992511919,0.4925,40363.0,40359.0,0.27246]
[1643992512116,0.4925,40363.0,40358.0,0.48030066]
[1643992512117,0.05,40360.0,40358.0,0.09511]
[1643992512317,0.02406104,40359.0,40358.0,0.09511]
[1643992512518,0.0740596,40359.0,40358.0,0.09511]
[1643992512715,0.32333631,40360.0,40358.0,0.09511]
[1643992512914,0.32333631,40360.0,40359.0,0.1737104]
[1643992513113,0.68676078,40360.0,40359.0,0.1737104]
[1643992514014,0.37964072,40351.0,40347.0,0.22624792]
[1643992514284,1.55489,40359.0,40348.0,0.39051]
[1643992514285,0.12786139,40357.0,40348.0,0.39051]
[1643992514469,2.1183546,40349.0,40348.0,0.24784]
[1643992514670,2.4566256,40349.0,40348.0,0.24784]
[1643992514867,1.30032918,40349.0,40348.0,0.24784]
[1643992515071,0.96205818,40349.0,40348.0,0.24784]
[1643992515268,1.09343428,40349.0,40348.0,0.24784]
[1643992515467,1.43170528,40349.0,40348.0,0.24784]
[1643992515667,1.55,40348.0,40333.0,0.27639125]
[1643992515868,0.37593156,40342.0,40333.0,0.09517]
[1643992516068,0.37593156,40342.0,40335.0,0.338271]
[1643992516069,0.05,40336.0,40335.0,0.338271]
[1643992516269,0.59221751,40342.0,40336.0,0.09516]
[1643992516270,0.21628595,40342.0,40336.0,0.09516]
[1643992516469,0.0205012,40343.0,40337.0,0.24791]
[1643992516669,0.36047706,40340.0,40337.0,0.24791]
[1643992516871,0.0205012,40343.0,40337.0,0.24791]
[1643992517270,0.0205012,40343.0,40338.0,0.338271]
[1643992517471,0.0205012,40343.0,40331.0,0.05]
[1643992517472,0.15627659,40342.0,40331.0,0.05]
[1643992517674,0.0205012,40343.0,40334.0,0.05]
[1643992517869,0.0205012,40343.0,40332.0,0.338271]
[1643992517870,0.0205012,40343.0,40337.0,0.44722522]
[1643992518111,0.0205012,40343.0,40342.0,1.0]
[1643992518311,0.0205012,40343.0,40342.0,1.388271]
[1643992518312,1.2e-06,40343.0,40342.0,1.388271]
[1643992518512,0.05,40348.0,40342.0,1.358771]
[1643992518712,0.11992036,40352.0,40343.0,0.133017]
[1643992519110,0.35706442,40349.0,40343.0,0.133017]
[1643992519310,0.52487386,40356.0,40342.0,0.0705]
[1643992519711,0.5242854,40356.0,40342.0,0.0705]
[1643992519911,0.5242854,40356.0,40342.0,0.0425]
[1643992520113,0.0065,40346.0,40342.0,0.0435]
[1643992520322,0.22662502,40356.0,40343.0,0.061963]